bitfinex-derivatives/quotes_SOLF0:USTF0_20251122
["timestamp","ask_amount","ask_price","bid_price","bid_amount"]
[1763773692517,7.04849121,128.87,128.84,3.23096431]
[1763773695915,6.9895,128.86,128.84,3.23096431]
[1763773696424,6.9895,128.86,128.84,0.05096431]
[1763773696724,6.9901,128.85,128.84,0.05096431]
[1763773699417,6.9901,128.85,128.78,2.03734438]
[1763773699418,108.7545,128.83,128.78,3.18]
[1763773699622,7.21505948,128.88,128.78,3.18]
[1763773699817,2.03734438,128.88,128.81,3.18]
[1763773700421,0.05205825,128.86,128.83,3.22944671]
[1763773700633,2.08940263,128.86,128.83,3.22944671]
[1763773702824,0.05205825,128.86,128.83,3.22944671]
[1763773705436,2.08940263,128.86,128.83,3.22944671]
[1763773706725,6.9901,128.85,128.83,0.04944671]
[1763773707530,6.9916,128.83,128.78,3.18]
[1763773707831,2.03734438,128.84,128.78,3.18]
[1763773707832,2.03734438,128.8,128.78,3.18]
[1763773708020,2.03734438,128.8,128.74,3.18]
[1763773708629,2.03734438,128.8,128.76,3.23883434]
[1763773708630,0.05579875,128.78,128.76,3.23883434]
[1763773711230,7.04969875,128.78,128.76,0.05883434]
[1763773711429,2.03734438,128.77,128.76,0.05883434]
[1763773711629,2.03734438,128.77,128.71,16.46]
[1763773711837,9.03294438,128.75,128.71,3.18]
[1763773712634,7.05254933,128.74,128.72,0.04940263]
[1763773713327,0.05644933,128.74,128.72,0.04940263]
[1763773715248,0.05644933,128.74,128.72,3.04940263]
[1763773715742,2.03734438,128.8,128.72,3.04940263]
[1763773715941,9.03024438,128.8,128.73,6.9963]
[1763773716143,9.03024438,128.8,128.74,3.0]
[1763773716743,0.0582278,128.78,128.76,3.05409485]
[1763773717646,126.15722199,128.88,128.77,3.0]
[1763773717841,134.07115216,128.88,128.77,3.0]
[1763773718354,6.9898,128.86,128.8,3.0]
[1763773718538,6.9898,128.86,128.82,0.04927983]
[1763773718739,0.0535805,128.84,128.83,3.0]
[1763773721439,0.0035805,128.84,128.83,3.0]
[1763773721643,25.35665216,128.91,128.83,3.0]
[1763773722242,6.988,128.89,128.83,3.0]
[1763773722643,0.05869294,128.87,128.85,0.05476215]
[1763773722848,0.05869294,128.87,128.85,3.05476215]
[1763773724550,0.05869294,128.87,128.85,0.05476215]
[1763773727244,7.04779294,128.87,128.85,0.05476215]
[1763773727445,7.04779294,128.87,128.82,3.0]
[1763773728152,6.9897,128.86,128.82,3.0]
[1763773728349,0.05869294,128.87,128.78,16.48]
[1763773728550,108.7274,128.86,128.79,3.0]
[1763773728851,0.05651188,128.84,128.81,0.05863121]
[1763773729254,7.04721188,128.84,128.81,3.05863121]
[1763773730650,0.05651188,128.84,128.81,3.05863121]
[1763773740568,3.1836972,128.89,128.81,3.05863121]
[1763773740760,3.1836972,128.89,128.81,3.0]
[1763773741556,0.050537,128.86,128.85,3.0]
[1763773743261,3.1836972,128.93,128.85,3.0]
[1763773743462,3.1836972,128.93,128.86,3.0]
[1763773744160,0.05658452,128.91,128.89,3.0]
[1763773744669,7.04378452,128.91,128.89,3.0]
[1763773744868,0.05658452,128.91,128.89,3.0]
[1763773745667,6.9879,128.89,128.88,0.05726445]
[1763773745859,3.24028172,128.91,128.88,0.05726445]
[1763773746064,0.05658452,128.91,128.88,0.05726445]
[1763773746467,7.04348452,128.91,128.88,0.05726445]
[1763773746770,0.05658452,128.91,128.88,0.05726445]
[1763773747664,6.9874,128.9,128.88,0.05726445]
[1763773747866,0.05658452,128.91,128.88,0.05726445]
[1763773749575,6.9879,128.89,128.88,0.05726445]
[1763773751074,7.04388452,128.91,128.88,3.27726445]
[1763773751376,0.05658452,128.91,128.88,3.27726445]
[1763773752661,6.9874,128.9,128.88,3.27726445]
[1763773753261,6.9879,128.89,128.88,0.05726445]
[1763773760172,108.7189,128.87,128.82,3.22]
[1763773760477,16.42,128.87,128.82,3.22]
[1763773761066,0.04996181,128.86,128.83,0.05380704]
[1763773761573,6.9902,128.85,128.83,0.05380704]
[1763773762766,0.04996181,128.86,128.83,3.27380704]
[1763773763880,7.03996181,128.86,128.83,3.27380704]
[1763773764081,0.04996181,128.86,128.83,0.05380704]
[1763773764581,3.23365901,128.86,128.83,0.05380704]
[1763773764968,6.9906,128.84,128.83,0.05380704]
[1763773765173,108.7361,128.85,128.78,3.22]
[1763773765482,19.6036972,128.84,128.78,3.22]
[1763773766378,0.0517977,128.82,128.8,0.0516396]
[1763773767682,0.0517977,128.82,128.8,3.2716396]
[1763773770388,6.9905,128.85,128.8,3.2716396]
[1763773771589,0.05180112,128.84,128.81,3.22]
[1763773773179,6.9894,128.87,128.81,3.22]
[1763773773577,6.9894,128.87,128.82,6.9916]
[1763773773780,6.9897,128.86,128.83,3.22]
[1763773774192,7.0467884,128.86,128.83,3.26921533]
[1763773774482,6.9901,128.85,128.83,3.26921533]
[1763773775484,6.9901,128.85,128.83,0.04921533]
[1763773778792,2.0379967,128.84,128.83,0.04921533]
[1763773779688,108.7518,128.83,128.76,3.02]
[1763773779888,2.0379967,128.81,128.76,3.02]
[1763773780387,6.9929,128.8,128.76,3.02]
[1763773780587,18.4579967,128.81,128.76,3.02]
[1763773780785,0.05029874,128.8,128.77,0.05224465]
[1763773780985,0.05029874,128.8,128.77,3.07224465]
[1763773781384,2.0379967,128.79,128.77,3.07224465]
[1763773781588,9.0312967,128.79,128.77,3.07224465]
[1763773782182,9.0312967,128.79,128.77,0.05224465]
[1763773782385,6.9945,128.77,128.74,3.02]
[1763773782795,6.9955,128.75,128.72,3.02]
[1763773782995,9.0334967,128.75,128.69,3.02]
[1763773783391,0.05334521,128.73,128.71,3.07530556]
[1763773786500,2.09134191,128.73,128.71,3.07530556]
[1763773787999,2.09134191,128.73,128.65,19.44]
[1763773788298,2.0379967,128.68,128.65,3.02]
[1763773788594,2.0379967,128.66,128.61,3.02]
[1763773788998,0.05012639,128.65,128.63,3.02]
[1763773791196,0.05012639,128.65,128.62,0.05340624]
[1763773792001,108.9123,128.64,128.58,3.02]
[1763773792506,108.9064,128.65,128.58,3.02]
[1763773793105,0.05316361,128.63,128.6,0.05893455]
[1763773793308,0.05316361,128.63,128.6,3.07893455]
[1763773794805,0.05316361,128.63,128.6,0.05893455]
[1763773796304,0.05316361,128.63,128.6,3.07893455]
[1763773798502,0.05316361,128.63,128.6,10.08243455]
[1763773798699,29.11615033,128.69,128.61,3.02]
[1763773799511,6.9995,128.68,128.61,3.02]
[1763773799710,6.9995,128.68,128.64,3.02]
[1763773799711,0.0516217,128.66,128.64,3.02]
[1763773800208,0.0516217,128.66,128.63,0.0512854]
[1763773800409,108.9496217,128.66,128.63,0.0512854]
[1763773800718,23.4411,128.65,128.63,0.0512854]
[1763773801103,125.3493,128.65,128.57,3.02]
[1763773801410,108.9381,128.61,128.54,3.02]
[1763773801610,16.44,128.6,128.54,3.02]
[1763773802211,0.04966304,128.58,128.56,0.05292328]
[1763773803510,7.0034,128.61,128.56,3.07292328]
[1763773803906,22.11695033,128.63,128.57,3.02]
[1763773804106,7.0027,128.62,128.57,3.02]
[1763773804507,0.05066116,128.61,128.59,3.02]
[1763773805712,22.11695033,128.69,128.59,3.02]
[1763773806018,16.44,128.69,128.61,3.19]
[1763773806610,0.04893681,128.66,128.64,0.0557172]
[1763773806919,0.04893681,128.66,128.64,3.2457172]
[1763773809613,7.04963681,128.66,128.64,0.0557172]
[1763773811310,0.04893681,128.66,128.64,0.0557172]
[1763773812721,7.04943681,128.66,128.64,0.0557172]
[1763773812921,108.9127,128.64,128.57,3.19]
[1763773813114,16.44,128.63,128.57,3.19]
[1763773813515,7.0027,128.62,128.57,3.19]
[1763773814122,0.05532659,128.61,128.58,3.23979384]
[1763773814721,130.98555033,128.7,128.58,3.23979384]
[1763773814921,130.98555033,128.7,128.59,3.19]
[1763773815122,6.9994,128.68,128.62,3.19]
[1763773815717,0.05858877,128.66,128.64,3.24181041]
[1763773816612,0.05858877,128.66,128.64,0.05181041]
[1763773816814,0.05858877,128.66,128.64,3.24181041]
[1763773818421,7.05918877,128.66,128.64,0.05181041]
[1763773818622,23.49918877,128.66,128.64,0.05181041]
[1763773827126,7.0034,128.61,128.56,3.19]
[1763773827329,16.44,128.62,128.56,3.19]
[1763773827528,108.9106,128.65,128.56,3.19]
[1763773827831,16.44,128.64,128.56,3.19]
[1763773828231,6.9997,128.68,128.61,3.19]
[1763773828420,9.81597813,128.69,128.61,3.19]
[1763773828421,19.01,128.69,128.61,3.19]
[1763773828838,6.9999,128.67,128.61,3.19]
[1763773829026,2.57,128.65,128.61,3.19]
[1763773829228,0.05175666,128.64,128.62,3.23983249]
[1763773829529,0.05178472,128.64,128.62,3.24125426]
[1763773829730,0.05178472,128.64,128.63,3.19]
[1763773832836,2.62178472,128.64,128.62,0.05125426]
[1763773833037,108.9299,128.62,128.53,15.30764155]
[1763773833242,108.9299,128.62,128.53,5.67695033]
[1763773833243,112.0299,128.62,128.53,5.67695033]
[1763773833429,108.919,128.64,128.53,12.68395033]
[1763773833745,125.359,128.64,128.53,15.30764155]
[1763773834239,0.05736708,128.6,128.57,0.05248084]
[1763773834637,0.05736708,128.6,128.57,1.61248084]
[1763773835237,0.05736708,128.6,128.58,3.02]
[1763773839537,3.1,128.65,128.58,3.02]
[1763773840138,7.002,128.63,128.59,3.16]
[1763773840330,3.1,128.65,128.59,3.16]
[1763773840536,7.05606371,128.63,128.61,0.05947133]
[1763773840739,3.09356371,128.63,128.61,0.05947133]
[1763773842445,10.0426,128.62,128.61,0.05947133]
[1763773843633,0.05356371,128.63,128.61,0.05947133]
[1763773844135,3.04,128.62,128.56,3.16]
[1763773844337,3.04,128.6,128.53,3.16]
[1763773845133,0.05102938,128.58,128.55,0.05010204]
[1763773845336,3.09102938,128.58,128.55,0.05010204]
[1763773845537,10.09582938,128.58,128.55,3.21010204]
[1763773845745,3.04,128.57,128.55,0.05010204]
[1763773846041,0.05102938,128.58,128.55,3.21010204]
[1763773847135,3.09102938,128.58,128.55,3.21010204]
[1763773848044,0.05102938,128.58,128.55,3.21010204]
[1763773848845,3.09102938,128.58,128.55,0.05010204]
[1763773850645,7.0053,128.57,128.55,0.05010204]
[1763773851042,3.04,128.56,128.55,0.05010204]
[1763773851346,3.04,128.56,128.49,3.16]
[1763773851347,3.04,128.53,128.49,3.16]
[1763773851543,3.04,128.53,128.46,12.79069122]
[1763773851748,3.04,128.53,128.47,3.16]
[1763773852347,7.059533,128.51,128.49,3.21652797]
[1763773852749,0.050933,128.51,128.49,3.21652797]
[1763773854747,3.090933,128.51,128.49,0.05652797]
[1763773855057,3.090933,128.51,128.46,3.16]
[1763773855948,3.090933,128.51,128.47,0.05924832]
[1763773856656,7.0099,128.49,128.47,0.05924832]
[1763773857554,10.099933,128.51,128.47,3.21924832]
[1763773860250,3.04,128.5,128.47,0.05924832]
[1763773860457,3.04,128.49,128.47,0.05924832]
[1763773860857,19.48,128.5,128.47,3.21924832]
[1763773861055,3.090933,128.51,128.47,3.21924832]
[1763773861451,0.050933,128.51,128.47,3.21924832]
[1763773862050,0.050933,128.51,128.49,3.16]
[1763773864558,0.050933,128.51,128.5,3.16]
[1763773864756,3.04,128.59,128.51,3.16]
[1763773865069,3.04,128.58,128.51,3.16]
[1763773865359,10.046,128.56,128.52,3.04]
[1763773865747,0.05979697,128.55,128.53,0.0552825]
[1763773866049,0.05979697,128.55,128.53,3.0952825]
[1763773866253,10.11639697,128.55,128.53,0.0552825]
[1763773867755,10.11639697,128.55,128.53,3.0952825]
[1763773867756,0.05979697,128.55,128.53,3.0952825]
[1763773868652,10.0531,128.61,128.53,3.0952825]
[1763773868857,3.05,128.61,128.53,3.04]
[1763773869564,7.0037,128.6,128.55,7.0061]
[1763773869867,3.05,128.58,128.56,0.05873757]
[1763773870758,10.0555,128.57,128.56,0.05873757]
[1763773872467,0.05657702,128.59,128.56,3.09873757]
[1763773872763,3.10657702,128.59,128.56,0.05873757]
[1763773874768,10.11087702,128.59,128.56,0.05873757]
[1763773875263,10.0548,128.58,128.56,0.05873757]
[1763773875773,3.05,128.57,128.56,0.05873757]
[1763773875960,3.05,128.57,128.53,3.04]
[1763773875961,3.05,128.57,128.5,23.4486]
[1763773876165,10.0561,128.56,128.51,3.04]
[1763773877066,0.05080433,128.55,128.52,3.09484301]
[1763773878660,3.10080433,128.55,128.52,3.09484301]
[1763773878867,7.05740433,128.55,128.52,3.09484301]
[1763773880072,7.0071,128.54,128.52,0.05484301]
[1763773880274,10.0571,128.54,128.52,0.05484301]
[1763773880576,3.05,128.53,128.52,0.05484301]
[1763773880770,7.0086,128.51,128.47,3.04]
[1763773881469,3.05,128.56,128.47,3.04]
[1763773881674,3.05,128.55,128.47,3.04]
[1763773881874,0.05495255,128.52,128.5,0.05985004]
[1763773882275,3.05,128.5,128.44,3.04]
[1763773882667,7.0083,128.52,128.46,3.04]
[1763773882973,16.44,128.55,128.46,3.04]
[1763773883278,0.0502741,128.52,128.5,3.04]
[1763773883467,3.05,128.58,128.5,3.04]
[1763773883663,3.05,128.61,128.53,3.04]
[1763773883965,3.05,128.64,128.59,3.04]
[1763773884364,5.60361556,128.65,128.6,3.04]
[1763773884570,0.05028417,128.64,128.62,3.04]
[1763773886172,0.00028417,128.64,128.62,3.04]
[1763773886365,3.05,128.74,128.65,3.04]
[1763773886766,3.05,128.74,128.67,3.04]
[1763773886966,11.63,128.78,128.67,3.04]
[1763773887171,11.63,128.78,128.69,3.04]
[1763773887369,0.05173571,128.74,128.71,3.09241841]
[1763773888672,0.05173571,128.74,128.72,3.04]
[1763773888875,0.05173571,128.74,128.71,3.09241841]
[1763773891774,6.9923,128.81,128.72,3.04]
[1763773891979,3.05,128.83,128.74,3.04]
[1763773892677,118.7936,128.83,128.74,3.04]
[1763773892882,0.05087697,128.8,128.77,3.09962786]
[1763773895880,0.05087697,128.8,128.79,3.25]
[1763773896983,0.00087697,128.8,128.79,3.25]
[1763773898293,3.04087697,128.8,128.78,16.44]
[1763773898488,3.04087697,128.8,128.77,0.05962786]
[1763773899390,3.04,128.79,128.77,0.05962786]
[1763773900391,10.0337,128.79,128.77,0.05962786]
[1763773903390,3.04,128.78,128.77,0.05962786]
[1763773903595,3.04,128.77,128.71,19.69]
[1763773903985,111.8456,128.77,128.71,19.69]
[1763773904190,3.04,128.76,128.71,19.69]
[1763773904388,6.9957,128.75,128.71,19.69]
[1763773904593,3.09554856,128.74,128.72,0.05193452]
[1763773906691,10.09184856,128.74,128.72,0.05193452]
[1763773906892,3.04,128.73,128.72,0.05193452]
[1763773908798,0.05554856,128.74,128.72,0.05193452]
[1763773908999,0.05554856,128.74,128.72,3.30193452]
[1763773909299,0.05554856,128.74,128.72,0.05193452]
[1763773909701,0.05554856,128.74,128.72,3.30193452]
[1763773909991,0.05554856,128.74,128.72,0.05193452]
[1763773913401,3.09554856,128.74,128.72,0.05193452]
[1763773913900,3.04,128.73,128.72,0.05193452]
[1763773916699,26.53164856,128.74,128.72,0.05193452]
[1763773916894,10.09164856,128.74,128.72,0.05193452]
[1763773917095,3.04,128.73,128.72,0.05193452]
[1763773920701,7.05164856,128.74,128.72,0.05193452]
[1763773920912,3.04,128.73,128.72,0.05193452]
[1763773922105,7.05164856,128.74,128.72,0.05193452]
[1763773922405,10.09164856,128.74,128.72,0.05193452]
[1763773922797,7.05164856,128.74,128.72,3.30193452]
[1763773923002,7.05164856,128.74,128.72,0.05193452]
[1763773923199,10.09164856,128.74,128.72,0.05193452]
[1763773923405,7.05164856,128.74,128.72,0.05193452]
[1763773924509,0.05554856,128.74,128.72,3.30193452]
[1763773925008,7.05164856,128.74,128.72,0.05193452]
[1763773925415,10.15164856,128.74,128.72,0.05193452]
[1763773926912,7.05164856,128.74,128.72,0.05193452]
[1763773928109,3.1,128.73,128.72,0.05193452]
[1763773930109,7.05164856,128.74,128.72,0.05193452]
[1763773930313,0.05554856,128.74,128.72,3.08193452]
[1763773930809,0.05554856,128.74,128.72,10.07903452]
[1763773931015,0.05554856,128.74,128.73,3.03]
[1763773931608,155.70282196,128.84,128.75,3.03]
[1763773931609,10.2284432,128.82,128.75,3.03]
[1763773931803,3.1,128.84,128.76,3.03]
[1763773932406,10.091,128.84,128.78,10.0238]
[1763773932604,0.05093735,128.82,128.8,3.08119279]
[1763773933606,0.05093735,128.82,128.8,10.07369279]
[1763773933914,0.05093735,128.82,128.81,3.03]
[1763773934911,3.1,128.87,128.82,3.03]
[1763773935111,3.1,128.9,128.82,3.03]
[1763773935818,0.05674972,128.87,128.85,3.08341434]
[1763773936515,0.05674972,128.87,128.85,10.07331434]
[1763773936719,3.1,128.93,128.86,3.03]
[1763773938023,3.14935816,128.91,128.88,0.05422854]
[1763773938519,3.1,128.9,128.88,0.05422854]
[1763773938716,10.0876,128.9,128.88,0.05422854]
[1763773939015,3.1,128.89,128.88,0.00422854]
[1763773939219,3.1,128.88,128.82,16.42]
[1763773939610,3.1,128.88,128.8,10.0225]
[1763773939819,3.1,128.88,128.81,3.03]
[1763773940322,0.05847871,128.86,128.83,0.05298178]
[1763773940521,0.05847871,128.86,128.83,3.08298178]
[1763773940814,3.1,128.91,128.83,3.08298178]
[1763773940815,3.1,128.89,128.83,3.08298178]
[1763773941023,3.1,128.87,128.8,3.03]
[1763773941725,0.05730644,128.85,128.82,0.05190098]
[1763773942023,0.05730644,128.85,128.82,3.08190098]
[1763773942819,0.05730644,128.85,128.83,3.03]
[1763773943418,0.05730644,128.85,128.84,3.03]
[1763773948021,0.05730644,128.85,128.83,3.03]
[1763773948722,0.05730644,128.85,128.82,3.08190098]
[1763773949323,0.05730644,128.85,128.82,10.07330098]
[1763773949626,3.1,128.91,128.83,3.03]
[1763773949830,10.0871,128.91,128.85,6.9899]
[1763773950022,3.1,128.94,128.86,3.03]
[1763773950526,0.05610603,128.91,128.89,0.05632689]
[1763773950933,0.05610603,128.91,128.89,3.08632689]
[1763773951529,3.1,128.94,128.9,3.03]
[1763773952527,0.05194858,128.93,128.9,3.03]
[1763773952829,0.05194858,128.93,128.9,111.7198]
[1763773953030,0.05194858,128.93,128.92,3.03]
[1763773953229,3.1,129.0,128.92,10.0161]
[1763773953230,6.9831,128.98,128.92,10.0161]
[1763773953436,3.1,128.97,128.92,3.03]
[1763773953830,3.1,128.96,128.92,3.03]
[1763773954137,0.05262385,128.95,128.93,0.05665234]
[1763773956733,3.08262385,128.95,128.93,0.05665234]
[1763773957233,0.05262385,128.95,128.93,3.27665234]
[1763773957538,3.08262385,128.95,128.93,0.05665234]
[1763773961233,10.06752385,128.95,128.93,0.05665234]
[1763773961441,3.08262385,128.95,128.93,0.05665234]
[1763773964846,10.06732385,128.95,128.93,0.05665234]
[1763773969750,3.08262385,128.95,128.93,0.05665234]
[1763773970647,3.03,128.94,128.93,0.05665234]
[1763773970845,3.03,128.94,128.87,16.4]
[1763773971037,3.03,128.93,128.89,6.9878]
[1763773971237,3.03,128.93,128.89,10.2078]
[1763773971543,3.03,128.96,128.9,3.22]
[1763773971936,0.0518622,128.94,128.92,0.04999889]
[1763773972846,0.0518622,128.94,128.92,10.25609889]
[1763773973354,0.0518622,128.94,128.93,3.22]
[1763773974248,3.0818622,128.94,128.92,0.04999889]
[1763773974442,0.0518622,128.94,128.92,3.26999889]
[1763773975544,0.0518622,128.94,128.92,10.25619889]
[1763773975740,0.0518622,128.94,128.93,3.22]
[1763773976947,3.0818622,128.94,128.92,7.03619889]
[1763773977145,3.0818622,128.94,128.92,0.04999889]
[1763773977552,0.0518622,128.94,128.92,0.04999889]
[1763773977751,0.0518622,128.94,128.92,3.26999889]
[1763773978350,3.03,128.93,128.92,0.04999889]
[1763773979655,3.0818622,128.94,128.92,0.04999889]
[1763773980057,10.0671622,128.94,128.92,0.04999889]
[1763773980454,3.03,128.93,128.86,3.22]
[1763773980758,3.03,128.9,128.83,19.62]
[1763773980961,3.03,128.9,128.85,10.2099]
[1763773981258,3.03,128.9,128.86,3.22]
[1763773981458,3.08759681,128.89,128.87,0.0536031]
[1763773983258,10.07549681,128.89,128.87,0.0536031]
[1763773984658,3.03,128.88,128.8,15.63069122]
[1763773984964,3.03,128.84,128.8,3.22]
[1763773985764,0.05805103,128.83,128.81,3.12483207]
[1763773989662,3.03805103,128.83,128.81,0.05483207]
[1763773990063,2.98,128.82,128.76,16.4]
[1763773990456,2.98,128.8,128.76,19.47]
[1763773990654,2.98,128.8,128.77,3.07]
[1763773991060,3.03612683,128.8,128.77,3.11989557]
[1763773991965,3.03612683,128.8,128.77,0.04989557]
[1763773992159,10.02912683,128.8,128.77,0.04989557]
[1763773992664,2.98,128.79,128.77,0.04989557]
[1763773992967,9.9735,128.79,128.77,0.04989557]
[1763773993271,2.98,128.78,128.77,0.04989557]
[1763773995064,3.03612683,128.8,128.77,0.04989557]
[1763773995367,3.03612683,128.8,128.77,3.11989557]
[1763773995568,0.05612683,128.8,128.77,3.11989557]
[1763773995968,2.98,128.86,128.79,3.07]
[1763773996375,2.98,128.84,128.79,10.0629]
[1763773996980,0.05478562,128.83,128.81,3.07]
[1763773998173,0.05478562,128.83,128.81,10.062]
[1763773998372,0.05478562,128.83,128.82,3.07]
[1763773999072,2.98,128.87,128.84,3.07]
[1763774000170,3.02937222,128.87,128.84,3.12511594]
[1763774000367,10.01837222,128.87,128.84,0.05511594]
[1763774001278,2.98,128.86,128.84,0.05511594]
[1763774001675,9.9696,128.86,128.84,0.05511594]
[1763774001876,2.98,128.85,128.84,0.05511594]
[1763774002582,2.98,128.83,128.8,19.49]
[1763774003584,0.04979199,128.83,128.8,19.53960939]
[1763774003787,0.04979199,128.83,128.81,3.07]
[1763774004883,3.02979199,128.83,128.8,0.04960939]
[1763774005383,2.98,128.82,128.8,0.04960939]
[1763774006277,2.98,128.81,128.8,0.04960939]
[1763774006774,9.9723,128.81,128.75,25.47]
[1763774006975,9.9723,128.81,128.75,19.47]
[1763774007773,0.05872264,128.79,128.77,0.05708652]
[1763774009785,0.05872264,128.79,128.77,3.12708652]
[1763774011688,0.05872264,128.79,128.78,3.07]
[1763774011990,9.971,128.84,128.78,3.07]
[1763774012188,2.98,128.84,128.78,3.07]
[1763774012590,6.9905,128.85,128.79,3.07]
[1763774012785,0.05923746,128.83,128.79,3.07]
[1763774012990,0.05923746,128.83,128.81,3.12681651]
[1763774013187,0.05923746,128.83,128.81,3.12151592]
[1763774014692,0.05923746,128.83,128.81,0.05151592]
[1763774015290,3.03923746,128.83,128.81,0.05151592]
[1763774015591,0.05923746,128.83,128.81,3.18151592]
[1763774017695,3.03923746,128.83,128.81,0.05151592]
[1763774022895,10.03043746,128.83,128.81,0.05151592]
[1763774023194,2.98,128.82,128.81,0.05151592]
[1763774029296,9.9717,128.82,128.81,0.05151592]
[1763774035404,9.9739,128.78,128.75,3.13]
[1763774035610,2.98,128.77,128.74,21.58809049]
[1763774035908,9.9744,128.77,128.74,21.58809049]
[1763774036396,10.02489584,128.77,128.74,21.64256844]
[1763774036593,6.995,128.76,128.74,3.18447795]
[1763774037209,3.03049584,128.77,128.74,3.18447795]
[1763774038711,3.03049584,128.77,128.74,10.18047795]
[1763774039404,2.98,128.76,128.74,0.05447795]
[1763774039904,0.05049584,128.77,128.74,10.18047795]
[1763774040101,0.05049584,128.77,128.75,3.13]
[1763774041111,0.05049584,128.77,128.75,10.1253]
[1763774041412,0.05049584,128.77,128.76,3.13]
[1763774042002,9.9721,128.82,128.77,3.13]
[1763774042197,2.98,128.81,128.77,3.13]
[1763774043012,3.03982727,128.8,128.78,0.05076941]
[1763774043517,0.05982727,128.8,128.78,3.18076941]
[1763774047814,9.22927626,128.88,128.8,3.0]
[1763774048007,5.67521768,128.87,128.81,3.0]
[1763774048306,15.79501768,128.86,128.82,3.0]
[1763774048510,10.1198,128.86,128.82,3.0]
[1763774048914,0.0524401,128.85,128.83,3.05133129]
[1763774049213,10.1725401,128.85,128.83,0.05133129]
[1763774049412,3.13,128.84,128.83,0.05133129]
[1763774050615,3.13,128.81,128.78,11.66878171]
[1763774050915,3.13,128.81,128.77,3.0]
[1763774051703,0.05137245,128.8,128.78,3.05966408]
[1763774051905,0.05137245,128.8,128.78,5.09775457]
[1763774052106,0.05137245,128.8,128.79,3.0]
[1763774056427,3.13,128.85,128.81,3.0]
[1763774056722,3.13,128.85,128.82,5.03809049]
[1763774057418,3.18839984,128.85,128.82,5.092923]
[1763774058721,10.17849984,128.85,128.82,2.092923]
[1763774058919,3.13,128.84,128.82,2.092923]
[1763774059820,3.13,128.84,128.82,5.092923]
[1763774060008,7.04849984,128.85,128.82,5.092923]
[1763774060210,3.13,128.83,128.82,0.05483251]
[1763774060417,0.05839984,128.85,128.82,0.05483251]
[1763774060613,8.79201866,128.84,128.82,0.05483251]
[1763774060919,3.13,128.84,128.82,0.05483251]
[1763774061110,0.05839984,128.85,128.82,12.084523]
[1763774061309,0.05839984,128.85,128.83,3.0]
[1763774062822,3.18839984,128.85,128.83,2.03809049]
[1763774063410,3.18839984,128.85,128.82,0.05483251]
[1763774064420,3.18839984,128.85,128.82,10.04653251]
[1763774064723,3.18839984,128.85,128.82,3.05483251]
[1763774064923,3.18839984,128.85,128.82,0.05483251]
[1763774065125,10.1206,128.84,128.82,0.05483251]
[1763774067425,3.13,128.84,128.82,0.05483251]
[1763774070914,10.17849984,128.85,128.82,3.05483251]
[1763774072928,0.05839984,128.85,128.83,5.03809049]
[1763774073229,0.05839984,128.85,128.84,3.0]
[1763774074015,0.05839984,128.85,128.84,9.9906]
[1763774074218,10.1184,128.88,128.85,3.0]
[1763774074415,10.1184,128.88,128.85,5.03809049]
[1763774074923,3.07,128.92,128.87,2.03809049]
[1763774075119,5.64127297,128.93,128.9,3.15]
[1763774075321,10.0533,128.98,128.92,10.1362]
[1763774075524,3.28,128.97,128.94,5.25809049]
[1763774075719,3.28,129.01,128.97,3.22]
[1763774075917,3.28,129.02,128.99,3.22]
[1763774076121,8.9096986,129.02,128.99,3.22]
[1763774076321,3.28,129.03,129.0,2.03809049]
[1763774076526,3.33524553,129.03,129.0,2.09474707]
[1763774076719,3.28,129.02,129.0,0.05665658]
[1763774077323,3.28,129.01,128.96,2.03809049]
[1763774077525,3.28,129.01,128.94,2.03809049]
[1763774078327,3.28,128.98,128.96,0.05468127]
[1763774078519,3.28,128.98,128.96,2.09277176]
[1763774079924,3.28,128.98,128.96,0.05468127]
[1763774080327,3.28,128.97,128.96,0.05468127]